[Event "German Championship Women 2022"]
[Site "Magdeburg"]
[Date "2022.08.16"]
[Round "3.12"]
[White "Mader, Lena"]
[Black "Halas, Julia"]
[Result "0-1"]
[ECO "E66"]
[WhiteElo "1826"]
[BlackElo "2012"]
[Annotator "NA RC"]
[PlyCount "114"]
[EventDate "2022.08.14"]
[EventType "swiss"]
[EventCountry "GER"]
[SourceTitle "playchess.com"]
[Source "ChessBase"]
[SourceQuality "1"]
[TimeControl "40/5400+30:1800+30"]

1. c4 {[%emt 0:00:01]} Nf6 {[%emt 0:00:06]} 2. g3 {[%emt 0:00:09]} g6 {[%emt 0:00:06]} 3. Bg2 {[%emt 0:00:05]} Bg7 {[%emt 0:00:04]} 4. Nf3 {[%emt 0:00:04]} O-O {[%emt 0:00:06]} 5. O-O {[%emt 0:00:04]} d6 {[%emt 0:00:06]} 6. Nc3 {[%emt 0:00:05]} c5 {[%emt 0:00:07]} 7. d4 {[%emt 0:05:48]} Nc6 {[%emt 0:00:32]} 8. d5 {[%emt 0:05:23]} Na5 {[%emt 0:00:21]} 9. Qd3 {[%emt 0:00:44]} Rb8 {[%emt 0:01:47]} 10. e4 {[%emt 0:18:28]} a6 {[%emt 0:04:47]} 11. e5 {[%emt 0:04:17]} Ne8 {[%emt 0:17:16]} 12. Bf4 {[%emt 0:09:16]} b5 {[%emt 0:03:06]} 13. b3 {[%emt 0:01:46]} bxc4 {[%emt 0:04:10]} 14. bxc4 {[%emt 0:03:07]} Rb4 {[%emt 0:02:19]} 15. exd6 {[%emt 0:12:52]} (15. Nd2 $15) 15... Nxd6 $17 {[%emt 0:15:17]} 16. Rac1 {[%emt 0:10:41]} Naxc4 {[%emt 0:04:27]} 17. Rfe1 {[%emt 0:03:25]} Bf5 {[%emt 0:02:50]} 18. Qe2 {[%emt 0:01:36]} Re8 {[%emt 0:02:35]} 19. Bxd6 {[%emt 0:06:49]} Qxd6 {[%emt 0:05:03]} 20. Nh4 {[%emt 0:00:14]} Ne5 {[%emt 0:15:36]} 21. Nxf5 {[%emt 0:02:06]} gxf5 {[%emt 0:00:02]} 22. Qc2 {[%emt 0:02:25]} Qg6 {[%emt 0:03:24]} 23. Ne2 {[%emt 0:00:41]} Rb2 {[%emt 0:08:01]} 24. Qa4 {[%emt 0:02:08]} Reb8 {[%emt 0:02:07]} 25. Nf4 {[%emt 0:00:10]} Qb6 {[%emt 0:00:32]} 26. Red1 {[%emt 0:06:07]} c4 {[%emt 0:01:39]} 27. Rf1 {[%emt 0:00:30]} Rc8 {[%emt 0:04:38]} 28. Qd1 {[%emt 0:02:21]} Bh6 {[%emt 0:00:59]} 29. Rc2 {[%emt 0:01:37]} Bxf4 {[%emt 0:00:40]} 30. gxf4 {[%emt 0:00:54]} Nd3 {[%emt 0:00:35]} 31. Rxb2 {[%emt 0:00:36]} Qxb2 {[%emt 0:00:19]} 32. Qh5 {[%emt 0:00:45]} Qf6 {[%emt 0:00:35]} 33. Qf3 {[%emt 0:00:28]} Nc5 {[%emt 0:00:23]} 34. Kh1 {[%emt 0:00:12]} Ne4 {[%emt 0:00:28]} 35. Rg1 {[%emt 0:00:30]} Kh8 {[%emt 0:00:04]} 36. Qe2 {[%emt 0:00:14]} Qd4 {[%emt 0:01:04]} 37. Bxe4 {[%emt 0:01:08]} Qxe4+ {[%emt 0:00:27]} 38. Qxe4 {[%emt 0:00:01]} fxe4 {[%emt 0:00:06]} 39. f5 {[%emt 0:00:16]} c3 {[%emt 0:00:32]} 40. f6 {[%emt 0:00:44]} exf6 {[%emt 0:00:44]} 41. d6 {[%emt 0:30:35]} Rd8 {[%emt 0:31:40]} 42. Rc1 {[%emt 0:00:16]} Rxd6 {[%emt 0:00:11]} 43. Rxc3 {[%emt 0:00:04]} f5 {[%emt 0:00:00]} 44. Kg2 {[%emt 0:00:00]} Kg7 {[%emt 0:00:00]} 45. Kf1 {[%emt 0:00:00]} Kf6 {[%emt 0:00:00]} 46. Ke2 {[%emt 0:00:00]} Ke5 {[%emt 0:00:00]} 47. Rh3 {[%emt 0:00:00]} h6 {[%emt 0:00:00]} 48. Rc3 {[%emt 0:00:00]} Rb6 {[%emt 0:00:00]} 49. Rc5+ {[%emt 0:00:00]} Kf4 {[%emt 0:00:00]} 50. Rc2 {[%emt 0:00:00]} a5 {[%emt 0:00:00]} 51. a4 {[%emt 0:00:00]} Rb4 {[%emt 0:00:00]} 52. Rc7 {[%emt 0:00:00]} Rxa4 {[%emt 0:00:00]} 53. Rxf7 {[%emt 0:00:00]} Ra2+ {[%emt 0:00:00]} 54. Ke1 {[%emt 0:00:00]} a4 {[%emt 0:00:00]} 55. Rf8 {[%emt 0:00:00]} a3 {[%emt 0:00:00]} 56. Rf7 {[%emt 0:00:00]} Rb2 {[%emt 0:00:00]} 57. Ra7 {[%emt 0:00:00]} a2 {[%emt 0:00:03]} 0-1

[Event "German Championship Women 2022"]
[Site "Magdeburg"]
[Date "2022.08.16"]
[Round "3.13"]
[White "Heil, Marina"]
[Black "Braun, Kristin"]
[Result "0-1"]
[ECO "A16"]
[WhiteElo "1926"]
[BlackElo "1897"]
[Annotator "TA"]
[PlyCount "84"]
[EventDate "2022.08.14"]
[EventType "swiss"]
[EventCountry "GER"]
[SourceTitle "playchess.com"]
[Source "ChessBase"]
[SourceQuality "1"]
[TimeControl "40/5400+30:1800+30"]

{[%evp 18,84,3,2,18,-15,12,0,0,-14,-7,-3,0,-9,-5,-31,-16,-19,-11,-45,-18,-33,-20,-25,0,-2,107,0,121,62,68,51,64,56,50,41,39,41,69,27,292,-69,0,0,7,-148,-147,-185,-162,-317,-366,-289,-258,-790,-368,-352,-232,-794,-775,-29983,-29983,-2741,-2586,-29988,-29987,-29986,-1321,-1279,-1261]} 1. c4 {[%emt 0:00:02]} Nf6 {[%emt 0:00:02]} 2. Nc3 {[%emt 0:00:06]} g6 {[%emt 0:00:03]} 3. g3 {[%emt 0:00:07]} Bg7 {[%emt 0:00:03]} 4. Bg2 {[%emt 0:00:09]} d6 {[%emt 0:00:02]} 5. e4 {[%emt 0:00:19]} O-O {[%emt 0:00:19]} 6. Nge2 {[%emt 0:00:12]} c5 {[%emt 0:00:31]} 7. O-O {[%emt 0:00:37]} Nc6 {[%emt 0:03:11]} 8. d3 {[%emt 0:00:19]} Bg4 {[%emt 0:02:58]} 9. h3 {[%emt 0:00:19]} Bxe2 {[%emt 0:00:11]} 10. Nxe2 {[%emt 0:00:17]} a6 {[%emt 0:01:42] A36: Symmetrical English vs ...g6: 4 Bg2 Bg7.} 11. Nc3 {[%emt 0:04:06] [#]} Ne8 $146 {[%emt 0:02:48]} ({Predecessor:} 11... Rb8 12. a4 Nd4 13. Be3 Nd7 14. a5 e6 15. Kh2 b5 16. axb6 Qxb6 17. Ra2 Ne5 18. f4 {1-0 (41) Ursan,P (2225)-Kouroglou,K (1724) Tornelo INT 2021}) 12. Be3 {[%emt 0:04:10]} Nc7 {[%emt 0:00:33] The position is equal.} 13. Rb1 {[%emt 0:00:41]} Rb8 {[%emt 0:05:00]} 14. Qd2 {[%emt 0:08:05]} b5 {[%emt 0:04:20]} 15. b3 {[%emt 0:07:01]} Qd7 {[%emt 0:05:56]} 16. Bh6 {[%emt 0:02:33]} Nd4 {[%emt 0:03:21]} 17. Bxg7 {[%emt 0:08:16]} Kxg7 {[%emt 0:00:12]} 18. h4 {[%emt 0:02:04]} Nce6 {[%emt 0:14:42]} 19. f4 {[%emt 0:06:14]} Nd8 {[%emt 0:06:12]} 20. Rbe1 {[%emt 0:04:53]} Qg4 {[%emt 0:09:35]} 21. Kh2 {[%emt 0:05:18]} e5 {[%emt 0:11:17]} (21... b4 $11 22. Nd5 N8c6) 22. Re3 {[%emt 0:08:31]} (22. fxe5 $16 dxe5 23. Bh3 Nf3+ 24. Rxf3 $1 Qxf3 25. Rf1) 22... f5 {[%emt 0:08:21]} (22... N8c6 $11) 23. Bh3 {[%emt 0:05:47]} ({Better is} 23. fxe5 $16 f4 24. gxf4 dxe5 25. f5) 23... Qh5 $14 {[%emt 0:00:09]} 24. fxe5 {[%emt 0:03:20]} f4 $1 {[%emt 0:01:41]} 25. gxf4 {[%emt 0:04:51][%cal Bg3f4,Bf4f5][%mdl 32]} Qxh4 {[%emt 0:00:44]} 26. Rg3 {[%emt 0:03:22]} (26. exd6 Rxf4 27. Rxf4 Qxf4+ 28. Kh1 Qxd6 $11) 26... dxe5 {[%emt 0:01:24][%cal Rf8f4]} 27. f5 {[%emt 0:00:52]} N8e6 {[%emt 0:03:39]} 28. Nd5 {[%emt 0:02:07] Against Nf4. Threatens to win with Rg4.} (28. Rg4 $5 {[%cal Rg4h4]} Qh5 29. Nd5 $14) 28... g5 $2 {[%emt 0:02:05][%mdl 8192]} (28... Kh8 $11 {and Black has nothing to worry.}) 29. Rfg1 $2 {[%emt 0:01:00] [#]} (29. fxe6 Rxf1 30. Qxg5+ Qxg5 31. Rxg5+ Kh6 $11) (29. Rg4 $18 Qh6 30. Rgg1 (30. fxe6 Rxf1 31. Qxg5+ Qxg5 $11) (30. cxb5 Kh8 $11)) 29... h6 {[%emt 0:02:15]} 30. Rf1 {[%emt 0:06:11] aiming for cxb5.} ({Not} 30. fxe6 $2 Nf3+ 31. Rxf3 Rxf3 $19) 30... Kh8 {[%emt 0:03:20] The board is on fire.} 31. Qg2 $2 {[%emt 0:02:16]} (31. Ne7 $11 Qh5 32. Ng6+ Kh7 33. Nxe5 (33. Nxf8+ Rxf8 34. cxb5 axb5 $11)) 31... Nf4 $17 {[%emt 0:01:50]} 32. Qd2 {[%emt 0:03:02]} Nde2 {[%emt 0:01:13] Pair of Knights!} 33. Rff3 {[%emt 0:02:06]} (33. Re3) 33... Nxg3 $19 {[%emt 0:00:42]} 34. Rxg3 {[%emt 0:00:01]} Rg8 {[%emt 0:03:17]} 35. Nf6 $2 {[%emt 0:02:42]} (35. Qe3) 35... Rg7 {[%emt 0:00:17]} ({Inferior is} 35... Rgf8 36. Nd7 $17) (35... g4 $142 36. Nxg8 Rxg8) 36. Qb2 {[%emt 0:01:01]} Re7 {[%emt 0:02:38]} 37. Ng4 $2 {[%emt 0:00:54]} (37. Nd5 Rbe8 38. Nxe7 Rxe7 39. cxb5) 37... Nxh3 {[%emt 0:00:29]} 38. Kg2 {[%emt 0:02:09]} Nf4+ {[%emt 0:00:17]} 39. Kf3 {[%emt 0:00:02]} Qh1+ {[%emt 0:00:26]} 40. Ke3 {[%emt 0:00:09]} Qe1+ {[%emt 0:00:59]} 41. Kf3 {[%emt 0:30:18]} Qd1+ {[%emt 0:05:37]} (41... Qf1+ $142 42. Nf2 Rg8 43. Ke3 Qe1+ 44. Kf3 h5 45. Ng4 h4 46. Rg2 Qh1 47. Ne3 g4+ 48. Kf2 Nxd3+ 49. Ke2 Nxb2 50. Rf2 Qxe4 51. Rh2 Qd3+ 52. Ke1 Qxe3+ 53. Kf1 {[#]} g3 $1 54. Rxh4+ Rh7 55. Rxh7+ Kxh7 56. Kg2 Qf2+ 57. Kh3 Qh2#) 42. Kf2 {[%emt 0:00:00] [#]} Qxg4 $3 {[%emt 0:02:21][%mdl 512] Weighted Error Value: White=1.21/Black=0.65} 0-1

[Event "German Championship Women 2022"]
[Site "Magdeburg"]
[Date "2022.08.16"]
[Round "4.1"]
[White "Voicu-Jagodzinsky, Carmen"]
[Black "Schulze, Lara"]
[Result "0-1"]
[ECO "B67"]
[WhiteElo "2258"]
[BlackElo "2292"]
[Annotator "TA"]
[PlyCount "116"]
[EventDate "2022.08.14"]
[EventType "swiss"]
[EventCountry "GER"]
[SourceTitle "playchess.com"]
[Source "ChessBase"]
[SourceQuality "1"]
[TimeControl "40/5400+30:1800+30"]

{[%evp 16,116,58,33,20,27,37,41,38,17,33,16,30,18,24,0,0,0,0,0,0,0,33,-8,25,45,31,22,23,6,47,-29,0,0,21,0,0,0,0,43,60,52,47,45,58,60,62,15,75,88,150,93,79,47,54,-20,-19,-489,-501,-613,-604,-793,-649,-637,-667,-665,-662,-644,-647,-546,-579,-659,-631,-654,-599,-827,-810,-787,-817,-903,-872,-29986,-955,-1123,-1078,-2260,-2079,-29983,-29958,-29954,-29957,-29966,-29968,-29965,-29965,-29965,-29959,-29967,-29968,-29962,-29961,-6696,-5600]} 1. e4 {[%emt 0:00:01]} c5 {[%emt 0:00:01]} 2. Nf3 {[%emt 0:00:06]} Nc6 {[%emt 0:00:06]} 3. d4 {[%emt 0:00:03]} cxd4 {[%emt 0:00:07]} 4. Nxd4 {[%emt 0:00:03]} Nf6 {[%emt 0:00:09]} 5. Nc3 {[%emt 0:00:04]} d6 {[%emt 0:00:05]} 6. Bg5 {[%emt 0:00:47]} e6 {[%emt 0:00:13]} 7. Qd2 {[%emt 0:00:07]} a6 {[%emt 0:00:12]} 8. O-O-O {[%emt 0:00:42]} Bd7 {[%emt 0:00:13]} 9. Kb1 {[%emt 0:00:04]} Nxd4 {[%emt 0:00:38] B67: Sicilian: Richter-Rauzer: 7...a6 8 0-0-0 Bd7, lines without 9 f4 Be7.} 10. Qxd4 {[%emt 0:00:03]} Be7 {[%emt 0:00:11]} 11. f3 {[%emt 0:03:13]} Qc7 {[%emt 0:01:06] White is slightly better.} 12. Qd2 {[%emt 0:00:55]} b5 {[%emt 0:01:27][%cal Bb7b5,Bb5b4][%mdl 32]} 13. h4 {[%emt 0:06:02]} h6 {[%emt 0:04:02]} 14. Be3 {[%emt 0:05:47]} h5 {[%emt 0:00:20] Against g4} 15. Bd3 {[%emt 0:06:33]} b4 {[%emt 0:21:43]} 16. Ne2 {[%emt 0:02:37] [#]} a5 $146 {[%emt 0:01:34]} ({Predecessor:} 16... e5 17. Bg5 a5 18. c3 Be6 19. Bb5+ Nd7 20. c4 f6 21. Be3 Kf7 22. f4 Kg8 23. Bxd7 Qxd7 24. fxe5 Bxc4 25. exd6 Qxd6 26. Qxd6 Bxd6 27. Rxd6 Bxe2 {½-½ (42) Giri,A (2776)-Vachier Lagrave,M (2758) chess24.com INT 2021}) 17. c3 {[%emt 0:05:00]} Qb7 {[%emt 0:03:36]} 18. Bg5 {[%emt 0:02:25]} O-O {[%emt 0:03:44]} 19. c4 {[%emt 0:03:12][%cal Oc4c5]} a4 {[%emt 0:08:16]} 20. Nf4 {[%emt 0:01:30] Strongly threatening Nxh5.} Bc6 {[%emt 0:03:11]} 21. Bxf6 {[%emt 0:25:05]} Bxf6 {[%emt 0:01:00]} 22. Nxh5 {[%emt 0:00:03]} Bd4 {[%emt 0:11:25]} 23. Rh3 {[%emt 0:17:29]} ({Better is} 23. Qg5 $1 $14) 23... Ra5 {[%emt 0:02:47][%mdl 1024] Black has compensation.} 24. g4 {[%emt 0:04:59]} a3 {[%emt 0:03:50][%cal Ob4b3] ( -> ...b3!)} 25. b3 $1 {[%emt 0:00:04]} Bc3 {[%emt 0:08:46]} 26. Qe3 {[%emt 0:00:51]} Re5 {[%emt 0:02:38][%cal Of7f5]} 27. Ng3 {[%emt 0:01:31] Inhibits f5.} f5 {[%emt 0:03:46] Threatens to win with ...f4.} 28. f4 $1 {[%emt 0:02:02][%cal Rg4f5]} fxg4 {[%emt 0:04:55]} 29. Rh2 {[%emt 0:00:12]} Ra5 {[%emt 0:02:04]} 30. Ne2 {[%emt 0:00:17]} Bb2 {[%emt 0:04:15]} 31. h5 {[%emt 0:02:47]} (31. Rg2 $14 {might be stronger.}) 31... Rf6 {[%emt 0:03:41]} (31... Be8 $1 $11) 32. Bc2 $16 {[%emt 0:00:48]} Rh6 {[%emt 0:03:08]} (32... Qc7 $142) 33. Ng3 {[%emt 0:00:57]} (33. e5 $142 $1) 33... e5 {[%emt 0:01:00]} 34. Nf5 {[%emt 0:03:11][%csl LRd6,LRh6]} (34. f5 $5 {[%cal Rh2h4]}) 34... Rf6 {[%emt 0:00:17] And now ...exf4 would win.} 35. h6 {[%emt 0:03:46]} ({But not} 35. Nxd6 Qc7 36. Qd3 Rxf4 $11) ({Much weaker is} 35. Rxd6 Rxd6 36. Nxd6 Qd7 $15) (35. Rh4 $14) 35... exf4 $11 {[%emt 0:01:16] Chess con chili.} 36. h7+ $2 {[%emt 0:02:28][%mdl 8192] White does not recover from this.} (36. Qe2 $1 $11 {and White has nothing to worry.} g6 37. Nxd6) 36... Kh8 $19 {[%emt 0:00:02]} 37. Qxf4 {[%emt 0:00:24]} Be5 {[%emt 0:00:48]} 38. Nxd6 {[%emt 0:02:30]} Bxf4 {[%emt 0:00:59] This bishop pair is nice.} ({Inferior is} 38... Rxf4 39. Nxb7 Ra8 40. Rh5 $17) 39. Nxb7 {[%emt 0:00:02] White wants to mate with Rd8+.} Ra8 {[%emt 0:01:03]} 40. Rg2 {[%emt 0:01:18]} Bxb7 {[%emt 0:00:51]} 41. Rxg4 {[%emt 0:30:05]} Be5 {[%emt 0:04:10]} 42. Rg5 {[%emt 0:00:00]} Re8 {[%emt 0:01:54]} 43. Rf5 {[%emt 0:00:00]} Bc6 {[%emt 0:04:25]} 44. Bd3 {[%emt 0:00:00]} Kxh7 {[%emt 0:03:24]} 45. Rg1 {[%emt 0:00:00]} Rxf5 {[%emt 0:03:55]} 46. exf5 {[%emt 0:00:00]} Bf6 {[%emt 0:00:32]} 47. c5 {[%emt 0:00:00]} Re3 {[%emt 0:04:36]} 48. Bc4 {[%emt 0:00:00]} Re5 {[%emt 0:03:43]} (48... Rc3 $142 49. Bd3 Rxd3 50. Kc2 Be4 51. Re1 Bxf5 52. Rf1 Rf3+ 53. Kd1 Rxf1+ 54. Ke2 Ra1 55. Kf3 Rxa2 56. Kf4 {[#]} Rd2 $1 57. Kf3 a2 58. Kf4 a1=Q $1 59. Kxf5 Qe5+ 60. Kg4 Rd3 61. c6 Qg5#) 49. Rg3 {[%emt 0:00:00]} Kh6 {[%emt 0:01:20] ...Re1+ is the strong threat.} 50. Rg6+ {[%emt 0:00:00]} Kh5 {[%emt 0:00:58]} 51. Bd3 {[%emt 0:00:00]} Be4 {[%emt 0:03:31]} 52. Bxe4 {[%emt 0:00:00]} Rxe4 {[%emt 0:00:02] KRB-KR} 53. Kc2 {[%emt 0:00:00]} Re3 {[%emt 0:01:33]} 54. Kd2 {[%emt 0:00:00]} Rc3 {[%emt 0:00:27]} 55. c6 {[%emt 0:00:00]} Rxc6 {[%emt 0:00:18]} 56. Kd3 {[%emt 0:00:00]} Rc1 {[%emt 0:01:02]} 57. Rg2 {[%emt 0:00:00]} Rb1 {[%emt 0:00:48]} 58. Kc4 {[%emt 0:00:00]} Bc3 {[%emt 0:00:22] Weighted Error Value: White=0.78/Black=0.26 (precise)} 0-1

[Event "German Championship Women 2022"]
[Site "Magdeburg"]
[Date "2022.08.16"]
[Round "4.2"]
[White "Kunze, Kerstin"]
[Black "Muetsch, Annmarie"]
[Result "1/2-1/2"]
[ECO "C50"]
[WhiteElo "2020"]
[BlackElo "2249"]
[Annotator "TA"]
[PlyCount "82"]
[EventDate "2022.08.14"]
[EventType "swiss"]
[EventCountry "GER"]
[SourceTitle "playchess.com"]
[Source "ChessBase"]
[SourceQuality "1"]
[TimeControl "40/5400+30:1800+30"]

{[%evp 13,82,47,45,40,49,-10,0,0,0,-6,0,-28,-17,-17,-22,-26,-35,-12,-2,-105,-107,-129,-121,-145,-149,-197,-188,-191,-202,-210,-187,-191,-107,-110,0,0,0,0,0,-14,-16,-16,-20,-17,-23,-16,-21,-33,-33,-52,0,-37,0,-5,36,52,79,86,74,80,62,60,45,13,18,8,70,0,25,0,9]} 1. e4 {[%emt 0:00:07]} e5 {[%emt 0:00:23]} 2. Nf3 {[%emt 0:00:12]} Nc6 {[%emt 0:00:06]} 3. Bc4 {[%emt 0:03:45]} Bc5 {[%emt 0:00:46]} 4. O-O {[%emt 0:01:52]} d6 {[%emt 0:03:05]} 5. c3 {[%emt 0:03:00]} Bg4 {[%emt 0:05:45]} 6. d3 {[%emt 0:14:32]} Nf6 {[%emt 0:02:59]} 7. h3 {[%emt 0:02:12]} Bh5 {[%emt 0:04:32]} 8. Nbd2 {[%emt 0:20:28] C54: Giuoco Piano: 4 c3 Nf6, main lines with 5 d4 and 5 d3.} O-O {[%emt 0:07:18]} 9. Qe1 {[%emt 0:11:52] [#]} (9. a4 $14) 9... a6 $146 {[%emt 0:04:35]} ({Predecessor:} 9... Na5 10. Bb5 a6 11. Ba4 b5 12. Bd1 Nc6 13. b4 Bb6 14. Nh2 Bxd1 15. Qxd1 d5 16. Re1 dxe4 17. Nxe4 Nxe4 18. dxe4 Qxd1 19. Rxd1 {1-0 (66) Polaski,F (1439)-Mester,P (1629) Playchess.com INT 2021}) 10. a4 {[%emt 0:01:03]} Re8 {[%emt 0:01:40]} 11. g4 {[%emt 0:03:29]} Bg6 {[%emt 0:03:49]} 12. Nb3 {[%emt 0:00:05]} Bb6 {[%emt 0:03:53]} 13. a5 {[%emt 0:03:01]} Ba7 {[%emt 0:00:08]} 14. Bg5 {[%emt 0:00:01]} h6 {[%emt 0:03:02]} 15. Bh4 {[%emt 0:00:06]} Nb8 {[%emt 0:01:39]} 16. Qd2 {[%emt 0:07:45] [#]} (16. Qe2 $11) 16... c6 $1 $17 {[%emt 0:05:53]} 17. d4 {[%emt 0:08:53]} exd4 {[%emt 0:07:06]} 18. Nbxd4 {[%emt 0:00:31]} Bxe4 {[%emt 0:05:52]} 19. g5 {[%emt 0:01:23]} (19. Bd3 $17) 19... hxg5 $19 {[%emt 0:03:22]} 20. Nxg5 {[%emt 0:07:49]} d5 {[%emt 0:00:13]} 21. Bd3 {[%emt 0:00:26]} Bxd3 {[%emt 0:14:43]} 22. Qxd3 {[%emt 0:00:02]} Ne4 {[%emt 0:00:52]} (22... Nbd7 $19 {And now ...Ne5 would win.} 23. Qg3 Bxd4 24. cxd4 Nf8) 23. Nxe4 $17 {[%emt 0:02:35]} dxe4 {[%emt 0:04:07]} ({Black should try} 23... Qxh4 $17 24. Nd6 Re5) 24. Qg3 $11 {[%emt 0:00:03]} Qd5 {[%emt 0:07:01] Inhibits Nf5.} 25. Bf6 $36 {[%emt 0:00:22][%csl Gf6][%cal Rg3g7][%mdl 2048] [#] White has good play.} g6 {[%emt 0:00:07] Threatens to win with ...Nd7.} 26. Qh4 {[%emt 0:03:10][%csl Gf6][%cal Rh4h8]} Qh5 {[%emt 0:00:05] Prevents Qh8+.} 27. Qxh5 {[%emt 0:00:26]} gxh5 {[%emt 0:00:05]} 28. Kh1 {[%emt 0:01:12]} Nd7 {[%emt 0:03:17]} 29. Rg1+ {[%emt 0:00:07]} Kf8 {[%emt 0:00:04]} 30. Bg7+ {[%emt 0:00:36]} Ke7 {[%emt 0:00:07]} 31. Rae1 {[%emt 0:01:09]} Kd6 {[%emt 0:01:31]} (31... Nc5 $15) 32. Rg5 {[%emt 0:00:57]} f6 {[%emt 0:01:54]} 33. Rxh5 {[%emt 0:00:02]} Bxd4 {[%emt 0:00:21]} (33... Re5 $5 {[%cal Re5h5]} 34. Rh4 Rae8 $15) 34. cxd4 {[%emt 0:00:03]} Re6 {[%emt 0:01:36]} 35. Bh6 {[%emt 0:00:21] aiming for Bf4+.} Ke7 {[%emt 0:00:37]} 36. Bd2 {[%emt 0:00:49] Bb4+ is the strong threat.} Re8 {[%emt 0:01:30]} 37. Rh7+ {[%emt 0:01:55]} Kd8 {[%emt 0:00:11]} 38. Bf4 {[%emt 0:00:10] Inhibits Rd6.} R6e7 {[%emt 0:01:17]} 39. Rh6 {[%emt 0:00:09]} Re6 {[%emt 0:00:28]} (39... Rf7 $11) 40. Rh7 {[%emt 0:02:03]} R6e7 {[%emt 0:01:40]} 41. Rh6 {[%emt 0:03:13]} Rg7 {[%emt 0:02:50] Whites escaped into a draw.  Weighted Error Value: White=0.22 (precise) /Black=0.16 (very precise)} 1/2-1/2